Cogmind - Beta 15 @@@ ROGUE MODE // 2025.05.09 @ 21:13:10 Player: shockman27 Result: Destroyed by Piercing Trap Performance ------------- Evolutions (0) 0 Regions Visited (2) 400 Robots Destroyed (49) 245 Value Destroyed (973) 973 Prototype IDs (2) 40 Alien Tech Used (0) 0 Bonus (0) 0 TOTAL SCORE: 1658 Bonus ------- None Cogmind --------- Core Integrity 0/250 Matter 300/300 Energy 96/100 System Corruption 0% Temperature Cool (2) Movement Treading (160) Location -10/Subcaves Parts ------- > --- POWER (1) -------- Subdweller Power Source > --- PROPULSION (2) --- Light Treads Spiked Treads > --- UTILITY (2) ------ Large Storage Unit > --- WEAPON (2) ------- Subdweller Beam Cannon Makeshift Spear > --- INVENTORY (15) --- Light Treads Huge Storage Unit Subdweller Optics Sensor Array Signal Interpreter Seismic Detector Hacking Suite Subdweller Beam Cannon Light Assault Rifle Battle Cannon Grenade Launcher Subdweller Shrapnel Launcher Mining Laser Flamer Peak State ------------ > --- POWER ------------ Subdweller Power Source > --- PROPULSION ------- Light Treads Spiked Treads > --- UTILITY ---------- Large Storage Unit Medium Armor Plating > --- WEAPON ----------- Subdweller Beam Cannon Makeshift Spear > --- INVENTORY -------- Light Treads Light Treads Huge Storage Unit Subdweller Optics Sensor Array Signal Interpreter Seismic Detector Hacking Suite Light Assault Rifle Battle Cannon Grenade Launcher Subdweller Shrapnel Launcher Mining Laser Flamer [Rating: 16] Favorites ----------- Power Ion Engine Engine Ion Engine Propulsion Light Treads Treads Light Treads Wheel Wheel Utility Large Storage Unit Device Seismic Detector Storage Large Storage Unit Protection Medium Armor Plating Weapon Light Assault Rifle Energy Gun Heavy Riot Gun Energy Cannon Subdweller Beam Cannon Ballistic Gun Light Assault Rifle Ballistic Cannon Battle Cannon Launcher Grenade Launcher Special Weapon Mining Laser Piercing Weapon Makeshift Spear Special Melee Weapon Datajack Build | -11 -10 -10 ------- Run | Yrd Mat Sub Slots Evolved . | . . . Power . | . . . Propulsion . | . . . Utility . | . . . Weapon . | . . . Parts Attached 34 | 10 10 14 Power 5 | 2 . 3 Engine 5 | 2 . 3 Core . | . . . Reactor . | . . . Propulsion 8 | 3 3 2 Treads 5 | . 3 2 Leg . | . . . Wheel 3 | 3 . . Hover . | . . . Flight . | . . . Utility 6 | 2 2 2 Device 1 | 1 . . Storage 3 | 1 2 . Processor . | . . . Hackware . | . . . Protection 2 | . . 2 Artifact . | . . . Weapon 15 | 3 5 7 Energy Gun 3 | 1 . 2 Energy Cannon 1 | . . 1 Ballistic Gun 4 | 2 1 1 Ballistic Cannon 2 | . . 2 Launcher 2 | . 2 . Special Weapon 1 | . 1 . Impact Weapon . | . . . Slashing Weapon . | . . . Piercing Weapon 1 | . . 1 Special Melee Weapon 1 | . 1 . Unidentified Prototypes . | . . . Parts Lost 6 | . 1 5 Power 1 | . . 1 Propulsion 1 | . . 1 Utility 2 | . . 2 Weapon 2 | . 1 1 Highest Loss Streak 2 | . 1 2 To Critical Strikes . | . . . Average Backups 12 | 5 13 13 Power 1 | 1 2 . Propulsion 2 | 2 2 1 Utility 4 | . 4 5 Weapon 4 | 1 3 5 Tool/Special . | . . . Unused Backups 18 | 2 5 11 Power 3 | . 1 2 Propulsion 2 | 1 1 . Utility 7 | . 3 4 Weapon 6 | 1 . 5 Tool/Special . | . . . Average Slot Usage (%) 99 | . 100 98 Engine 13 | . 14 13 Treads 26 | . 25 28 Wheel 1 | . 2 . Device 6 | . 14 . Storage 14 | . 14 14 Protection 6 | . . 12 Energy Gun 2 | . 1 2 Energy Cannon 3 | . . 5 Ballistic Gun 12 | . 21 4 Ballistic Cannon 2 | . . 3 Launcher 2 | . . 4 Special Weapon 2 | . 4 . Piercing Weapon 3 | . . 6 Peak Build Rating 16 | 7 8 16 Average Rating 10 | 5 7 13 On Entrance 5 | . 7 8 Naked Turns . | . . . Heaviest Build 43 | 13 30 43 Greatest Support 40 | 26 40 40 Greatest Overweight (x) 3 | 3 1 1 Average Overweight (x) . | . . . Largest Inventory Capacity 25 | 8 25 15 Average Capacity 14 | 7 14 15 Most Carried 15 | 8 15 15 Average Carried 13 | 5 13 14 Final Capacity 15 | 8 15 15 Final Carried 15 | 8 15 14 Class Distribution -------------------- 100% | Mutant Dominant Class ---------------- Mutant | -10/Materials Mutant | -10/Subcaves Resources | -11 -10 -10 ----------- Run | Yrd Mat Sub Matter Collected 1156 | 348 405 403 Remotely . | . . . Salvage Created 1453 | 197 764 492 Parts 105 | 23 50 32 Haulers Intercepted 2 | . 2 . Recyclers Shooed 2 | . 2 . Parts Field Recycled . | . . . Retrieved Matter . | . . . Parts Self-Destructed 4 | . . 4 Prevented . | . . . Kills | -11 -10 -10 ------- Run | Yrd Mat Sub Combat Hostiles Destroyed 26 | . 14 12 Melee 3 | . . 3 Guns 10 | . 7 3 Cannons 2 | . . 2 AOE 10 | . 6 4 Classes Destroyed 12 | 2 8 2 Worker 1 | . 1 . Builder 1 | . 1 . Tunneler 9 | 7 2 . Hauler 2 | . 2 . Recycler 4 | 1 3 . Mechanic 1 | . 1 . Operator 2 | . 2 . Watcher 3 | . 3 . Swarmer 9 | . 9 . Grunt 5 | . 5 . Artisan 1 | . . 1 Subdweller 12 | . . 12 Best Kill Streak 5 | 3 5 2 Combat Bots Only 4 | . 4 2 Max Kills in Single Turn 3 | 1 3 1 Gunslinging 1 | . 1 . Exploded 2 | . 2 1 Melee 1 | . . 1 Uniques/NPCs Destroyed . | . . . Combat | -11 -10 -10 -------- Run | Yrd Mat Sub Hostile Shots Fired 125 | . 64 61 Missed 30 | . 18 12 Hits 95 | . 46 49 Projectile 95 | . 46 49 Damage Taken 1558 | . 463 1095 Core 253 | . 144 109 Absorbed by Shields . | . . . Regen/Repaired (Parts) 73 | . 73 . Core Remaining (%) 100 | 100 . . Volleys Fired 139 | 26 72 41 Largest 2 | 2 2 2 Hottest 113 | 40 100 113 Shots Fired 261 | 52 137 72 Gun 228 | 52 126 50 Cannon 13 | . . 13 Launcher 17 | . 8 9 Special 3 | . 3 . Kinetic 196 | 52 105 39 Thermal 12 | . 3 9 Explosive 17 | . 8 9 Electromagnetic 36 | . 21 15 Robot Hit Streak 22 | 8 10 22 Robot Miss Streak 4 | 3 4 2 Penetration Max . | . . . Secondary Targets 1 | . 1 . Max Gunslinging Chain 1 | . 1 . Shots Hit Robots 175 | 34 79 62 Core Hits 82 | 13 47 22 Critical Kills . | . . . Critical Parts Destroyed . | . . . Critical Strikes 1 | . 1 . Corrupt 1 | . 1 . Melee Attacks 32 | . 5 27 Impact . | . . . Slashing . | . . . Piercing 27 | . . 27 Sneak Attacks 6 | . 5 1 Combat Hostiles . | . . . Follow-up Attacks . | . . . Damage Inflicted 2836 | 286 1412 1138 Guns 1568 | 286 871 411 Cannons 207 | . . 207 Explosions 848 | . 541 307 Melee 213 | . . 213 Ramming . | . . . Kinetic 1206 | 286 619 301 Thermal 339 | . 96 243 Explosive 707 | . 445 262 Electromagnetic 371 | . 252 119 Impact . | . . . Slashing . | . . . Piercing 213 | . . 213 Highest Corruption . | . . . Average Corruption . | . . . Corruption Purged . | . . . Corruption Blocked . | . . . Overload Shots . | . . . Overflow Damage 11 | . . 11 Projectiles . | . . . Explosions . | . . . Melee 11 | . . 11 Knockbacks 1 | . . 1 Impact . | . . . Kinetic 1 | . . 1 Secondary . | . . . Self-Inflicted Damage 59 | . 24 35 Shots 3 | . 1 2 Rammed . | . . . Targets Rammed . | . . . Kicked . | . . . Crushed . | . . . Highest Temperature 182 | . 182 1 Average Temperature 54 | . 54 1 Received Heat Transfer 369 | . 120 249 Siege Activations . | . . . Martial Activations . | . . . Shielding Activations . | . . . Robots Disrupted . | . . . Combat Hostiles . | . . . Robots Corrupted 1 | . 1 . Combat Hostiles 1 | . 1 . Parts Fried 3 | . 3 . Impact Corruptions . | . . . Robots Melted . | . . . Combat Hostiles . | . . . Parts Melted 1 | . . 1 Heat Transferred 361 | . 100 261 Parts Sabotaged . | . . . Parts Stolen . | . . . Parts Stripped . | . . . Power Chain Reactions 2 | . 1 1 Alert | -11 -10 -10 ------- Run | Yrd Mat Sub Maximum Alert Level . | . . . Low Security (%) 100 | 100 100 . Level 1 . | . . . Level 2 . | . . . Level 3 . | . . . Level 4 . | . . . Level 5 . | . . . High Security . | . . . Max Security . | . . . Peak Influence 122 | 10 122 . Initial 6 | . 6 . Average 45 | 1 51 . Influence Increases 579 | 40 539 . Destroy 0b10 Robot/C 280 | . 280 . Destroy 0b10 Robot/NC 115 | 40 75 . Destroy Leader 80 | . 80 . Successful Hack 21 | . 21 . Disable Machine 45 | . 45 . Destroy Structure 38 | . 38 . Influence Decreases 579 | 30 514 35 Entered New Map 22 | . 4 18 Time Decay 547 | 30 500 17 Lost Part 10 | . 10 . Squads Dispatched 3 | . 3 . Investigation 1 | . 1 . Extermination . | . . . Reinforcement 2 | . 2 . Assault . | . . . Garrison . | . . . Intercept . | . . . Searches Triggered . | . . . Construction Impeded . | . . . Haulers Reinforced . | . . . Active Scanning Responses . | . . . Cargo Convoy Interrupts . | . . . Stealth | -11 -10 -10 --------- Run | Yrd Mat Sub Distress Signals 1 | . 1 . Communications Jammed . | . . . Distress Signals . | . . . Times Spotted 38 | . 26 12 Peak Tracking Total 4 | . 4 2 Tactical Retreats . | . . . Traps | -11 -10 -10 ------- Run | Yrd Mat Sub Traps Triggered 2 | . 1 1 Indirectly . | . . . Trap Hack Attempts . | . . . Triggered . | . . . Disarmed . | . . . Reprogrammed . | . . . Reused . | . . . Traps Extracted . | . . . Installed . | . . . Triggered . | . . . Machines | -11 -10 -10 ---------- Run | Yrd Mat Sub Machines Disabled 3 | . 3 . Max in Single Turn 1 | . 1 . Machines Repaired . | . . . Machines Dismantled . | . . . Machines Sabotaged . | . . . Overloaded Fab Kills . | . . . Hacking | -11 -10 -10 --------- Run | Yrd Mat Sub Machines Accessed 9 | . 8 1 Terminals 6 | . 6 . Fabricators . | . . . Repair Stations 1 | . 1 . Recycling Units 1 | . 1 . Scanalyzers . | . . . Garrison Access . | . . . Total Hacks 26 | . 23 3 Successful 18 | . 15 3 Failed 8 | . 8 . Catastrophic 1 | . 1 . Database Lockouts . | . . . Manual 13 | . 13 . Terminals 18 | . 18 . Fabricators . | . . . Repair Stations 4 | . 4 . Recycling Units 1 | . 1 . Scanalyzers . | . . . Garrison Access . | . . . Terminal Hacks 10 | . 7 3 Record 3 | . . 3 Robot Analysis 2 | . 2 . Prototype ID Bank 1 | . 1 . Locate Traps 2 | . 2 . Hauler Manifests 1 | . 1 . Registered Components 1 | . 1 . Fabricator Hacks . | . . . Repair Station Hacks 3 | . 3 . Scan Component 2 | . 2 . Repair 1 | . 1 . Recycling Unit Hacks 1 | . 1 . Report Inventory 1 | . 1 . Scanalyzer . | . . . Garrison Access Hacks . | . . . Unauthorized Hacks 4 | . 4 . Terminals 4 | . 4 . Botnet 3 | . 3 . Operators 1 | . 1 . Fabricators . | . . . Repair Stations . | . . . Recycling Units . | . . . Scanalyzers . | . . . Garrison Access . | . . . Data Cores Recovered . | . . . Used . | . . . Hacking Detections 7 | . 7 . Full Trace Events 1 | . 1 . Feedback Events . | . . . Feedback Blocked . | . . . Robot Schematics Acquired . | . . . Robots Built . | . . . Authchips . | . . . Time . | . . . Total Robot Build Rating . | . . . Part Schematics Acquired . | . . . Parts Built . | . . . Authchips . | . . . Time . | . . . Total Part Build Rating . | . . . Parts Repaired 1 | . 1 . Time 26 | . 26 . Parts Recycled . | . . . Recycled Matter . | . . . Retrieved Matter . | . . . Retrieved Components . | . . . Parts Scanalyzed . | . . . Part Schematics Acquired . | . . . Parts Damaged . | . . . Bothacking | -11 -10 -10 ------------ Run | Yrd Mat Sub Used RIF Installer . | . . . Robots Hacked 4 | . 4 . Non-combat 4 | . 4 . Combat . | . . . Robot Hacks Applied 4 | . 4 . parse_system 2 | . 2 . no_distress 1 | . 1 . check_alert 1 | . 1 . Relay Couplers Released . | . . . Fabnet Peak Effective % . | . . . Robots Rewired . | . . . Allies Hacked . | . . . Hacks Repelled . | . . . Allies | -11 -10 -10 -------- Run | Yrd Mat Sub Total Allies . | . . . Largest Group . | . . . Highest-Rated Group . | . . . Highest-Rated Ally . | . . . Total Orders . | . . . Ally Attacks . | . . . Total Damage . | . . . Kills . | . . . Allies Corrupted . | . . . Allies Melted . | . . . Intel | -11 -10 -10 ------- Run | Yrd Mat Sub Active Infowar (turns) 1976 | 6 1941 29 Seismic 1976 | 6 1941 29 Robot Analysis Total 2 | . 2 . Derelict Logs Recovered 2 | . . 2 Drone Launches . | . . . Drone Recoveries . | . . . Exploration | -11 -10 -10 ------------- Run | Yrd Mat Sub Turns Passed 4317 | 277 1941 2099 Spaces Moved 2314 | 203 1062 1049 Core 18 | 18 . . Treads 1969 | . 920 1049 Legs . | . . . Wheels 327 | 185 142 . Hover . | . . . Flight . | . . . Fastest Speed 50 | 50 80 160 Average Speed 157 | 85 150 179 Slowest Speed 250 | 200 160 250 Overloaded Moves . | . . . Propulsion Burnouts . | . . . Robots Hopped . | . . . Potential Cave-ins . | . . . Cave-ins Triggered . | . . . Exploration Rate (%) 50 | 8 100 43 Regions Visited 2 Branch Regions 1 Pre-discovered Areas 1 | . . 1 Known Exits Taken . | . . . Unknown Exits Taken 2 | 1 1 . Scrap Searched 11 | . . 11 Spaces Dug 15 | . 14 1 Terrain Destroyed 80 | . 35 45 Melee 1 | . . 1 Projectile 3 | . 2 1 AOE 76 | . 33 43 Terrain Rammed . | . . . Walls Destroyed . | . . . Machines Disabled . | . . . Actions | -11 -10 -10 --------- Run | Yrd Mat Sub Total 2708 | 262 1277 1169 Wait 113 | 12 87 14 Move 2312 | 202 1061 1049 Hop . | . . . Pick Up 36 | 8 18 10 Fast Attach 10 | 8 1 1 Attach 4 | . 1 3 Detach 1 | 1 . . Swap 33 | 2 18 13 Drop 28 | 3 14 11 Fire 139 | 26 72 41 Melee 32 | . 5 27 Ram . | . . . Kick . | . . . Crush . | . . . Escape Stasis . | . . . Rewire . | . . . Trap . | . . . Miscellaneous . | . . . Route ------- -11/Scrapyard -10/Materials (discovered 5 exits: [*Mat x3] / [*Min] / *Sub) -10/Subcaves (discovered 1 exit: Mat) History --------- Turn | Location | Event 44 | -11/Scrapyard | Discovered new exit (range 15) 278 | -11/Scrapyard | Entered Materials 355 | -10/Materials | Build established: Mutant 659 | -10/Materials | Discovered new exit (range 15) 1097 | -10/Materials | Core integrity fell below 50% 1204 | -10/Materials | Discovered new exit (range 8) 1360 | -10/Materials | Discovered new exit (range 12) 1491 | -10/Materials | Discovered new exit (range 16) 2092 | -10/Materials | Discovered new exit (range 10) 2173 | -10/Materials | Repaired Lgt. Treads 2219 | -10/Materials | Entered Subcaves 2220 | -10/Subcaves | Approached by a straggling Scientist 2443 | -10/Subcaves | Identified exit to Materials 2488 | -10/Subcaves | Disturbed a concealed Subdweller 2796 | -10/Subcaves | Core integrity fell below 20% 2873 | -10/Subcaves | Shifting Twisted Machinery released Sub. Beam Cannon 2893 | -10/Subcaves | Shifting Twisted Machinery released Mak. Spear 3324 | -10/Subcaves | Visited Clippyterm 3329 | -10/Subcaves | Learned Factory emergency access door positions 4031 | -10/Subcaves | Ambushed by angry Subdweller bent on revenge 4181 | -10/Subcaves | Learned 2 Materials zone layouts 4218 | -10/Subcaves | Learned location of Zion (-6) 4218 | -10/Subcaves | Met a Zionite searching for "candidates" 4318 | -10/Subcaves | Destroyed by Piercing Trap Last Messages --------------- 04031_ C1-JNO(R) angrily emerges from the Twisted Machinery. 04031_ C1-JNO(R): "SUBHATE!" 04040_ Lgt. Treads destroyed. 04044_ C1-JNO(R) destroyed. 04053_ Med. Armor Plating destroyed. 04054_ Sub. Power Source melted. 04054_ MP-D0K(R) destroyed. 04056_ Acquired 5 matter. 04060_ Acquired Sub. Beam Cannon. 04077_ Sub. Power Source shoots sparks and powers down. 04181_ Acquired derelict log, extracted data. Data stored: Materials zone layouts (x2). 04216_ UU-ZGJ(z): "She is not going to be happy we haven't found any suitable candidates yet." 04218_ UU-ZGJ(z): "Hey you! It's really dangerous down here, I feel that you could die at any moment. For your health and safety might I suggest a trip to Zion?" World map updated: -6/Zion. 04318_ Triggered Piercing Trap. 04318_ Spikes shoot up from the floor. Map ----- +----------------------------------------------------+ | ?????????????????????????????????????????????????? | | ?????????????????????????????????????????????????? | | ?????????????????????????????????????????????????? | | ?????????????????????????????????????????????????? | | ?????????????????????????????????????????????????? | | ####?????????????????????????????????????????????? | | """##????###?###??????#####??????????????##??????? | | " ##??## ### #?????##" #????????????### ??????? | | #### ## #?#####"" #?????????#### ??????? | | ### ##""" ##???##### # # ##????? | | """" #???#"" #####? | | =% ## """""##?##" ## | | & #### #### "" "###"" ##???## | | # ##?#### """ ##### # | | "" # #???# ## "" """ ## | | ######## ##???## ####"" #""""" ### | | #??????# #????#"" ""##"""#"""" # ## # ### | | ???????# ##???# "" ## "" ##""" ##########?# | | ????##### #???###" ##""""##""" ##??????????# | | ????# ### #?????## ## "### ##???????????# | | ????## ##??????# ### "## ##????????????#### | | ?????## #??????## ## ### ##???????????????## | | ?????# ### #?????# ## ####?????????????????# | | ?????##??####?????# !! ^ #??????##########??# | | ??????????????????# =%&# ######### ## ##?# | | ??????????????????## ### @ #### | | ???????????????????# ## ###### # # # #?# | | ??????????????????## ## #????########### #### | | ??????????????????# # ######?????????????# # | | ??????????????????## ## ???????????????????# | | ???????????????????# ##???????????????????### ## | | ??????????????????## ###???????????????????##### | | ??????????????????# #??????????????????????## | | ?????????????????## ##??????????????????????# | | ?????????????????# ######??????????????????# | | ?????????????????## #??????????????????# | | ??????????????????# #### #??????????????????# | | ??###??????######### ##??## #??????????????????## | | ### #??????# # ## #????# #???????????????????? | | # [ #??????# #????# #???????????????????? | | ####????## ##??## #???????????????????? | | # # #????# # ## #### #???????????????????? | | # #?????# ##### # ##???????????????????? | | #?????# #???## ######????????????????????? | | #?????## ##???# #?????????????????????????? | | #######??#" #??# ?????????????????????????? | | ##??## ##### ##### #?????????????????????????? | | ##### """##" ## #?????????????????????????? | | ## """ """#### #?????????????????????????? | | "" ##??# ##?????????????????????????? | +----------------------------------------------------+ Best States ------------- Heat Dissipation 25 Energy Generation 15 Energy Capacity 250 Matter Stores 300 Matter Capacity 300 Sight Range 16 Terrain Scan Density 10 Armor Coverage 225 Evasion (%) 50 Recoil Reduction 2 Item Schematics ----------------- None Robot Schematics ------------------ None Fabricated ------------ Nothing Repaired ---------- Lgt. Treads | 47% | -10/Materials Alien Tech Used ----------------- None Achievements -------------- None Challenges ------------ None Game ------ Seed TargetingFieldthrustArchive Manual? 0 Play Time 00:34:58 Cumulative 74.4 hours Start 2025.05.08 @ 23:18:45 End 2025.05.09 @ 21:13:10 Sessions 3 Manual Loads 0 Difficulty Rogue Special Mode None Game No. 51 Rogue 47 Adventurer 4 Explorer 0 Win Type - Total 2 Types 1/0/0/1/0/0/0/0/0/0 Lore% 30 Gallery% 34 Achievement% 35 Wizard Run 0 Options --------- Layout 0 ASCII 0 Keyboard 1 Movement Vi Keybinds 0 Fullscreen 1 Font 24/Crisp Map View 76x50 Zoom Use 0% Tactical HUD 1 Map Filters NONE Filters NONE Steam 1 RUN: 26b71f17-f7d5-459c-b54b-285c83fd89c4